fUSD/lending_fUSD_20251206
["ID","MTS","AMOUNT","RATE_DAILY","PERIOD"]
[396504890,1765013811643,150.0,0.00014949,2]
[396504891,1765013815132,6068.6192823,0.00014935,2]
[396504892,1765013815155,3178.11009217,0.00014935,2]
[396504893,1765013821295,300.0,0.00015034,2]
[396504894,1765013836376,163.61,0.00015,2]
[396504895,1765013869342,399.89700002,0.00014935,2]
[396504897,1765013876797,1200.0,0.00015034,2]
[396504898,1765013925502,1852.42,0.0001485,2]
[396504899,1765013941350,300.0,0.00015034,2]
[396504900,1765013941927,240.0,0.00015034,2]
[396504901,1765013942479,1099.67657996,0.00015034,5]
[396504902,1765013991203,217.99457519,0.00014935,2]
[396504903,1765014001243,300.0,0.00015034,2]
[396504904,1765014001289,748.30175266,0.00015034,2]
[396504905,1765014001318,451.69824734,0.00015034,2]
[396504906,1765014003737,275.0,0.00015034,2]
[396504907,1765014014241,2036.14,0.00015025,2]
[396504908,1765014014822,2036.14,0.00015025,2]
[396504909,1765014061364,300.0,0.00015034,2]
[396504910,1765014065052,200.02954445,0.00015035,2]
[396504913,1765014093033,1951.678,0.00014735,2]
[396504914,1765014093191,169.653,0.00014735,2]
[396504916,1765014101193,500.0,0.00015035,2]
[396504917,1765014101440,500.0,0.00015035,2]
[396504918,1765014113802,1579.67120821,0.00014935,2]
[396504919,1765014113826,6456.27418939,0.00014935,2]
[396504920,1765014121294,300.0,0.00015034,2]
[396504921,1765014126636,151.0,0.00015035,2]
[396504922,1765014132109,542.48471571,0.00015035,2]
[396504923,1765014132422,151.0,0.00015035,2]
[396504924,1765014132976,151.0,0.00015035,2]
[396504925,1765014134094,151.0,0.00015035,2]
[396504926,1765014135177,151.0,0.00015035,2]
[396504927,1765014135457,151.0,0.00015035,2]
[396504928,1765014135973,151.0,0.00015035,2]
[396504929,1765014136271,500.0,0.00015035,2]
[396504930,1765014136577,151.0,0.00015035,2]
[396504931,1765014136881,500.0,0.00015035,2]
[396504932,1765014136959,493.2510949,0.00015035,2]
[396504933,1765014136981,6.7489051,0.00015035,2]
[396504934,1765014137114,500.0,0.00015035,2]
[396504935,1765014137614,151.0,0.00015035,2]
[396504936,1765014137703,500.0,0.00015035,2]
[396504937,1765014137847,151.0,0.00015035,2]
[396504938,1765014138306,500.0,0.00015035,2]
[396504939,1765014138485,151.0,0.00015035,2]
[396504940,1765014138993,500.0,0.00015035,2]
[396504941,1765014139027,151.0,0.00015035,2]
[396504942,1765014139112,500.0,0.00015035,2]
[396504943,1765014139319,578.20924308,0.00015035,2]
[396504944,1765014139668,500.0,0.00015035,2]
[396504945,1765014139732,500.0,0.00015035,2]
[396504946,1765014140287,500.0,0.00015035,2]
[396504947,1765014140336,500.0,0.00015035,2]
[396504948,1765014140913,500.0,0.00015035,2]
[396504949,1765014140966,500.0,0.00015035,2]
[396504950,1765014141531,500.0,0.00015035,2]
[396504951,1765014141696,199.77907347,0.00015035,2]
[396504952,1765014142254,500.0,0.00015035,2]
[396504953,1765014142284,200.0,0.00015035,2]
[396504954,1765014142346,1000.0,0.00015035,2]
[396504955,1765014142440,500.0,0.00015035,2]
[396504956,1765014142786,411.27277835,0.00015035,2]
[396504957,1765014142809,88.72722165,0.00015035,2]
[396504958,1765014142945,1000.0,0.00015035,2]
[396504959,1765014143053,397.54712625,0.00015035,2]
[396504960,1765014143367,500.0,0.00015035,2]
[396504961,1765014143619,1000.0,0.00015035,2]
[396504962,1765014143995,500.0,0.00015035,2]
[396504963,1765014144214,1000.0,0.00015035,2]
[396504964,1765014144592,500.0,0.00015035,2]
[396504965,1765014145553,500.0,0.00015035,2]
[396504966,1765014145615,1000.0,0.00015035,2]
[396504967,1765014145961,1000.0,0.00015035,2]
[396504968,1765014146558,1000.0,0.00015035,2]
[396504969,1765014147105,200.0,0.00015035,2]
[396504970,1765014147151,1000.0,0.00015035,2]
[396504971,1765014147796,313.7356521,0.00015035,2]
[396504972,1765014147818,686.2643479,0.00015035,2]
[396504973,1765014148130,1000.0,0.00015035,2]
[396504974,1765014152734,200.0,0.00015035,2]
[396504975,1765014154886,151.0,0.00015035,2]
[396504976,1765014155434,828.31,0.00014847,2]
[396504977,1765014158037,500.0,0.00015035,2]
[396504978,1765014172897,234.89925555,0.00015034,2]
[396504979,1765014197175,399.89700004,0.00014935,2]
[396504980,1765014201538,8322.05643705,0.00014935,2]
[396504981,1765014212111,293.92091827,0.00015034,2]
[396504982,1765014212171,249.23638909,0.00015034,2]
[396504983,1765014212197,250.76361091,0.00015034,2]
[396504984,1765014212251,208.66387638,0.00015034,2]
[396504985,1765014212284,236.93075809,0.00015034,2]
[396504986,1765014212323,536.17309205,0.00015034,2]
[396504987,1765014230999,-2933.49,0.00014991,2]
[396504988,1765014281520,378.00834252,0.00014935,2]
[396504989,1765014282256,-500.0,0.00015034,2]
[396504990,1765014282279,-500.0,0.00015034,2]
[396504991,1765014282302,-3.72178989,0.00015034,2]
[396504992,1765014289033,2500.0,0.00014935,2]
[396504993,1765014296050,-496.27821011,0.00015034,2]
[396504994,1765014296081,-500.0,0.00015034,2]
[396504995,1765014296119,-250.0,0.00015034,2]
[396504996,1765014296151,-500.0,0.00015034,2]
[396504997,1765014296185,-300.0,0.00015035,2]
[396504998,1765014296464,500.0,0.00015034,2]
[396504999,1765014296604,500.0,0.00015034,2]
[396505000,1765014297413,500.0,0.00015034,2]
[396505001,1765014297729,250.0,0.00015034,2]
[396505002,1765014301193,300.0,0.00015034,2]
[396505003,1765014301239,1200.0,0.00015034,2]
[396505004,1765014301280,300.0,0.00015034,2]
[396505005,1765014301495,293.34,0.00025,120]
[396505006,1765014309655,1600.0,0.00014817,2]
[396505007,1765014317520,500.0,0.00015034,2]
[396505008,1765014317561,257.45357978,0.00015034,2]
[396505009,1765014317587,242.54642022,0.00015034,2]
[396505010,1765014317632,500.0,0.00015034,2]
[396505011,1765014317681,500.0,0.00015034,2]
[396505012,1765014317715,217.77967055,0.00015034,2]
[396505013,1765014317762,500.0,0.00015034,2]
[396505014,1765014317876,500.0,0.00015034,2]
[396505015,1765014317938,500.0,0.00015034,2]
[396505016,1765014318023,500.0,0.00015034,2]
[396505017,1765014318072,500.0,0.00015034,2]
[396505018,1765014318145,500.0,0.00015034,2]
[396505019,1765014318182,500.0,0.00015034,2]
[396505020,1765014318219,500.0,0.00015034,2]
[396505021,1765014318262,500.0,0.00015034,2]
[396505022,1765014318330,500.0,0.00015034,2]
[396505023,1765014318470,500.0,0.00015034,2]
[396505024,1765014326890,-405.93948708,0.00015035,2]
[396505025,1765014327734,311.1,0.00015035,2]
[396505026,1765014353269,500.0,0.00015034,2]
[396505027,1765014358816,500.0,0.00015034,2]
[396505028,1765014371002,500.0,0.00015035,2]
[396505029,1765014371235,500.0,0.00015035,2]
[396505030,1765014380776,728.58390923,0.00014461,2]
[396505031,1765014380806,521.44609077,0.00014461,2]
[396505032,1765014382214,-300.0,0.00015035,2]
[396505033,1765014389083,-227.77791142,0.00015035,2]
[396505034,1765014391230,-266.83913473,0.00015035,2]
[396505035,1765014393564,-324.45510884,0.00015035,2]
[396505036,1765014395647,-180.49117804,0.00015035,2]
[396505037,1765014407649,500.0,0.00015035,2]
[396505038,1765014407928,500.0,0.00015035,2]
[396505039,1765014421423,300.0,0.00015034,2]
[396505040,1765014424995,311.1,0.00015035,2]
[396505041,1765014425616,500.0,0.00015035,2]
[396505042,1765014430220,200.0,0.00015035,2]
[396505043,1765014431254,151.0,0.00015035,2]
[396505044,1765014432420,151.0,0.00015035,2]
[396505045,1765014432572,151.0,0.00015035,2]
[396505046,1765014433085,151.0,0.00015035,2]
[396505047,1765014433695,151.0,0.00015035,2]
[396505048,1765014434343,151.0,0.00015035,2]
[396505049,1765014435038,151.0,0.00015035,2]
[396505050,1765014435647,151.0,0.00015035,2]
[396505051,1765014436269,-5003.65853677,0.00015035,2]
[396505052,1765014436307,-10000.01,0.00015035,2]
[396505053,1765014436371,151.0,0.00015035,2]
[396505054,1765014436411,-9849.01,0.00015035,2]
[396505055,1765014436453,-10000.01,0.00015035,2]
[396505056,1765014436631,-10000.01,0.00015035,2]
[396505057,1765014436735,-10000.01,0.00015035,2]
[396505058,1765014436770,500.0,0.00015035,2]
[396505059,1765014436849,151.0,0.00015035,2]
[396505060,1765014437002,265.5618935,0.00015035,2]
[396505061,1765014437045,-9083.4481065,0.00015035,2]
[396505062,1765014437616,152.97594253,0.00015035,2]
[396505063,1765014437699,151.0,0.00015035,2]
[396505064,1765014441673,-500.0,0.00015035,2]
[396505065,1765014441702,-500.0,0.00015035,2]
[396505066,1765014441733,-500.0,0.00015035,2]
[396505067,1765014441834,-6696.03405747,0.00015035,2]
[396505068,1765014441867,-10000.01,0.00015035,2]
[396505069,1765014442040,-10000.01,0.00015035,2]
[396505070,1765014461960,-284.38947275,0.00014935,2]
[396505071,1765014464063,-308.03318091,0.00014935,2]
[396505072,1765014464593,4155.6019837,0.00014457,2]
[396505073,1765014464616,4155.6019837,0.00014457,2]
[396505074,1765014464640,1594.4460326,0.00014457,2]
[396505075,1765014465478,-416.53052725,0.00014935,2]
[396505076,1765014466045,-1491.04681909,0.00014935,2]
[396505077,1765014469818,-215.0738,0.00015035,2]
[396505078,1765014489120,-993.0,0.00015034,2]
[396505079,1765014489150,-300.0,0.00015034,2]
[396505080,1765014489180,-198.79944473,0.00015034,2]
[396505081,1765014489209,-500.0,0.00015035,2]
[396505082,1765014489237,-500.0,0.00015035,2]
[396505083,1765014489273,-284.9262,0.00015035,2]
[396505084,1765014489304,-200.0,0.00015035,2]
[396505085,1765014489337,-1000.0,0.00015035,2]
[396505086,1765014489366,-200.0,0.00015035,2]
[396505087,1765014489396,-151.0,0.00015035,2]
[396505088,1765014489425,-151.0,0.00015035,2]
[396505089,1765014489454,-151.0,0.00015035,2]
[396505090,1765014491990,200.0,0.00014439,2]
[396505091,1765014499536,500.0,0.00015034,2]
[396505092,1765014499578,40.55871054,0.00015034,2]
[396505093,1765014499608,459.44128946,0.00015034,2]
[396505094,1765014499649,500.0,0.00015034,2]
[396505095,1765014499696,500.0,0.00015034,2]
[396505096,1765014499731,500.0,0.00015034,2]
[396505097,1765014499764,500.0,0.00015034,2]
[396505098,1765014499810,500.0,0.00015034,2]
[396505099,1765014499852,500.0,0.00015034,2]
[396505100,1765014499889,500.0,0.00015034,2]
[396505101,1765014499921,500.0,0.00015034,2]
[396505102,1765014499962,500.0,0.00015034,2]
[396505103,1765014500002,500.0,0.00015034,2]
[396505104,1765014500044,500.0,0.00015034,2]
[396505105,1765014500076,500.0,0.00015034,2]
[396505106,1765014500111,500.0,0.00015034,2]
[396505107,1765014500147,500.0,0.00015034,2]
[396505108,1765014500184,500.0,0.00015034,2]
[396505109,1765014500219,500.0,0.00015034,2]
[396505110,1765014500259,500.0,0.00015034,2]
[396505111,1765014500296,500.0,0.00015034,2]
[396505112,1765014500337,500.0,0.00015034,2]
[396505113,1765014500380,40.56871054,0.00015034,2]
[396505114,1765014500406,459.43128946,0.00015034,2]
[396505115,1765014500442,252.68654145,0.00015034,2]
[396505116,1765014500478,500.0,0.00015034,2]
[396505117,1765014500512,500.0,0.00015034,2]
[396505118,1765014500550,500.0,0.00015035,2]
[396505119,1765014500584,500.0,0.00015034,2]
[396505120,1765014500633,500.0,0.00015034,2]
[396505121,1765014500666,500.0,0.00015034,2]
[396505122,1765014500770,500.0,0.00015034,2]
[396505123,1765014500806,500.0,0.00015034,2]
[396505124,1765014501071,485.52312637,0.00015035,2]
[396505125,1765014501103,500.0,0.00015034,2]
[396505126,1765014501143,500.0,0.00015034,2]
[396505127,1765014501186,500.0,0.00015034,2]
[396505128,1765014501222,500.0,0.00015034,2]
[396505129,1765014501262,500.0,0.00015034,2]
[396505130,1765014501302,500.0,0.00015034,2]
[396505131,1765014501340,500.0,0.00015034,2]
[396505132,1765014501390,500.0,0.00015034,2]
[396505133,1765014501427,500.0,0.00015034,2]
[396505134,1765014501486,302.36904272,0.00015034,2]
[396505135,1765014520508,-232.31,0.0001496,2]
[396505136,1765014523661,-182.46438961,0.0001496,2]
[396505137,1765014528223,-241.32,0.0001496,2]
[396505138,1765014530997,-632.78772076,0.0001496,2]
[396505139,1765014532127,500.0,0.00014934,2]
[396505140,1765014534447,-162.175406,0.0001496,2]
[396505141,1765014536022,-162.175406,0.0001496,2]
[396505143,1765014542551,-233.32285711,0.0001496,2]
[396505144,1765014545214,-500.05747964,0.0001496,2]
[396505145,1765014550221,-182.04773697,0.0001496,2]
[396505146,1765014561592,384.6973277,0.00014935,2]
[396505147,1765014566020,9115.3126723,0.00014935,2]
[396505148,1765014566045,10000.01,0.00014935,2]
[396505149,1765014566069,10000.01,0.00014935,2]
[396505150,1765014566092,10000.01,0.00014935,2]
[396505151,1765014566887,-490.31482809,0.00014935,2]
[396505152,1765014568938,2561.1559511,0.00014594,2]
[396505153,1765014568960,4155.6019837,0.00014594,2]
[396505154,1765014568982,4155.6019837,0.00014594,2]
[396505155,1765014569002,3630.4700815,0.00014594,2]
[396505156,1765014569321,525.1319022,0.00014,2]
[396505157,1765014569346,1412.68378622,0.00014,2]
[396505158,1765014569469,-361.80776812,0.00014935,2]
[396505159,1765014572075,-619.03414726,0.00014935,2]
[396505160,1765014573605,-200.05410493,0.00014935,2]
[396505161,1765014575561,-9259.45128946,0.00014935,2]
[396505162,1765014575623,-10000.01,0.00014935,2]
[396505163,1765014575723,-10000.01,0.00014935,2]
[396505164,1765014613089,667.2,0.00022,30]
[396505176,1765014632309,-273.0,0.0001486,2]
[396505177,1765014632319,-301.75478192,0.0001486,2]
[396505178,1765014632328,-301.896846,0.0001486,2]
[396505179,1765014632337,-195.0,0.00014878,2]
[396505180,1765014632347,-1200.0,0.00014895,2]
[396505181,1765014632356,-9331.97398533,0.00014896,2]
[396505182,1765014632366,-9178.78777833,0.00014896,2]
[396505183,1765014632375,-195.0,0.00014904,2]
[396505184,1765014632385,-300.0,0.00014934,2]
[396505185,1765014632395,-300.0,0.00014934,2]
[396505186,1765014632404,-49096.18433882,0.00014935,2]
[396505188,1765014632416,-3597.77383017,0.00014935,2]
[396505190,1765014632427,-12127.65336345,0.00014935,2]
[396505200,1765014638372,-298300.41386989,0.00014935,2]
[396505208,1765014640589,-4574.1801,0.00014935,2]
[396505209,1765014640600,-322257.76968751,0.00014935,2]
[396505210,1765014640610,-365.8974645,0.00014996,2]
[396505211,1765014640620,-1214.9,0.00015034,2]
[396505212,1765014640633,-197.63095728,0.00015034,2]
[396505213,1765014640643,-500.0,0.00015034,2]
[396505214,1765014640652,-500.0,0.00015034,2]
[396505215,1765014640662,-500.0,0.00015034,2]
[396505216,1765014640673,-500.0,0.00015034,2]
[396505217,1765014640682,-500.0,0.00015034,2]
[396505218,1765014640692,-500.0,0.00015034,2]
[396505219,1765014640702,-500.0,0.00015034,2]
[396505220,1765014640711,-500.0,0.00015034,2]
[396505221,1765014640721,-500.0,0.00015034,2]
[396505222,1765014640730,-500.0,0.00015034,2]
[396505223,1765014640739,-500.0,0.00015034,2]
[396505224,1765014640748,-500.0,0.00015034,2]
[396505225,1765014640757,-500.0,0.00015034,2]
[396505226,1765014640766,-500.0,0.00015034,2]
[396505227,1765014640776,-500.0,0.00015034,2]
[396505228,1765014640785,-500.0,0.00015034,2]
[396505229,1765014640795,-500.0,0.00015034,2]
[396505230,1765014640804,-509.29242644,0.00015034,2]
[396505231,1765014640814,-509.29242644,0.00015034,2]
[396505232,1765014640823,-509.29242644,0.00015034,2]
[396505233,1765014640832,-509.29242644,0.00015034,2]
[396505234,1765014640841,-509.29242644,0.00015034,2]
[396505235,1765014640850,-509.29242644,0.00015034,2]
[396505236,1765014640859,-509.29242644,0.00015034,2]
[396505238,1765014641036,-509.29242644,0.00015034,2]
[396505239,1765014641046,-509.29242644,0.00015034,2]
[396505240,1765014641055,-509.29242644,0.00015034,2]
[396505241,1765014641064,-509.29242644,0.00015034,2]
[396505242,1765014641073,-509.29242644,0.00015034,2]
[396505243,1765014641082,-509.29242644,0.00015034,2]
[396505244,1765014641091,-509.29242644,0.00015034,2]
[396505246,1765014641102,-509.29242644,0.00015034,2]
[396505248,1765014641112,-509.29242644,0.00015034,2]
[396505250,1765014641121,-509.29242644,0.00015034,2]
[396505251,1765014641130,-509.29242644,0.00015034,2]
[396505252,1765014641139,-509.29242644,0.00015034,2]
[396505254,1765014641148,-509.29242644,0.00015034,2]
[396505255,1765014641158,-509.29242644,0.00015034,2]
[396505256,1765014641167,-509.29242644,0.00015034,2]
[396505257,1765014641176,-509.29242644,0.00015034,2]
[396505258,1765014641185,-509.29242644,0.00015034,2]
[396505259,1765014641193,-509.29242644,0.00015034,2]
[396505260,1765014641202,-509.29242644,0.00015034,2]
[396505261,1765014641211,-267.68933898,0.00015034,2]
[396505262,1765014641220,-385.61906426,0.00015034,2]
[396505263,1765014641229,-500.0,0.00015035,2]
[396505264,1765014641238,-500.0,0.00015035,2]
[396505265,1765014641247,-500.0,0.00015035,2]
[396505266,1765014641256,-502.41193472,0.00015035,2]
[396505267,1765014641265,-500.0,0.00015035,2]
[396505268,1765014641274,-500.0,0.00015035,2]
[396505269,1765014641283,-1000.0,0.00015035,2]
[396505270,1765014641292,-244.32357407,0.00015035,2]
[396505271,1765014641301,-364.76966087,0.00015037,2]
[396505272,1765014641311,-9331.97398525,0.00015119,2]
[396505273,1765014641320,-9178.78777829,0.00015119,2]
[396505274,1765014641330,-500.0,0.00015135,2]
[396505275,1765014641339,-500.0,0.00015135,2]
[396505276,1765014641349,-500.0,0.00015135,2]
[396505277,1765014641358,-500.0,0.00015135,2]
[396505278,1765014641367,-500.0,0.00015135,2]
[396505279,1765014641377,-500.0,0.00015135,2]
[396505280,1765014641386,-500.0,0.00015135,2]
[396505281,1765014641395,-623.44969961,0.00015135,2]
[396505282,1765014641404,-500.0,0.00015135,2]
[396505283,1765014641413,-500.0,0.00015135,2]
[396505284,1765014641423,-618.45750441,0.00015135,2]
[396505285,1765014641432,-500.0,0.00015135,2]
[396505286,1765014641441,-500.0,0.00015135,2]
[396505287,1765014641450,-226.10786118,0.000152,2]
[396505288,1765014641459,-1875.0,0.00015233,2]
[396505289,1765014641468,-330.0,0.00015264,2]
[396505290,1765014641478,-150.0,0.00015288,2]
[396505291,1765014641487,-150.0,0.00015288,2]
[396505292,1765014641496,-150.0,0.00015288,2]
[396505293,1765014641506,-150.0,0.00015288,2]
[396505294,1765014641515,-150.0,0.00015288,2]
[396505295,1765014641524,-150.0,0.00015288,2]
[396505296,1765014641533,-150.0,0.00015288,2]
[396505297,1765014641542,-150.0,0.00015288,2]
[396505298,1765014641551,-150.0,0.00015288,2]
[396505299,1765014641560,-150.0,0.00015288,2]
[396505300,1765014641569,-150.0,0.00015288,2]
[396505301,1765014641578,-150.0,0.00015288,2]
[396505302,1765014641588,-150.0,0.00015288,2]
[396505303,1765014641597,-150.0,0.00015288,2]
[396505304,1765014641606,-219.37,0.00015293,2]
[396505305,1765014641615,-1214.9,0.00015308,2]
[396505306,1765014641626,-150.0,0.00015325,2]
[396505307,1765014641636,-150.0,0.00015326,2]
[396505308,1765014641646,-150.0,0.00015338,2]
[396505309,1765014641655,-9331.97398525,0.00015341,2]
[396505310,1765014641664,-9178.78777829,0.00015341,2]
[396505311,1765014641674,-2817.47995647,0.00015347,2]
[396505312,1765014641683,-150.0,0.00015358,2]
[396505313,1765014641692,-384.69732764,0.00015359,2]
[396505314,1765014641702,-150.0,0.00015363,2]
[396505315,1765014641711,-150.0,0.00015365,2]
[396505316,1765014641720,-150.0,0.00015369,2]
[396505317,1765014641729,-150.0,0.00015373,2]
[396505318,1765014641738,-535.0,0.00015383,2]
[396505319,1765014641747,-182.0,0.00015383,2]
[396505320,1765014641756,-150.0,0.00015388,2]
[396505321,1765014641766,-150.0,0.00015394,2]
[396505322,1765014641776,-150.0,0.00015401,2]
[396505323,1765014641786,-150.0,0.00015403,2]
[396505324,1765014641796,-501.53,0.00015409,2]
[396505325,1765014641807,-312.0,0.00015413,2]
[396505326,1765014641817,-211.03,0.00015422,2]
[396505327,1765014641827,-150.0,0.00015429,2]
[396505328,1765014641838,-150.0,0.00015438,2]
[396505329,1765014641848,-150.0,0.00015439,2]
[396505330,1765014641857,-150.0,0.00015442,2]
[396505331,1765014641866,-150.0,0.00015449,2]
[396505332,1765014641875,-150.0,0.00015458,2]
[396505333,1765014641884,-150.0,0.00015476,2]
[396505334,1765014641894,-150.0,0.00015476,2]
[396505335,1765014641907,-150.0,0.00015481,2]
[396505336,1765014641916,-1983.57134746,0.00015483,2]
[396505337,1765014641925,-150.0,0.00015488,2]
[396505338,1765014641934,-150.0,0.000155,2]
[396505339,1765014641949,-150.0,0.000155,2]
[396505340,1765014641958,-150.0,0.00015514,2]
[396505341,1765014641967,-150.0,0.00015519,2]
[396505342,1765014641977,-150.0,0.0001553,2]
[396505343,1765014641986,-150.0,0.00015537,2]
[396505344,1765014641995,-150.0,0.00015542,2]
[396505345,1765014642004,-566.0,0.00015547,2]
[396505346,1765014642013,-150.0,0.00015552,2]
[396505347,1765014642025,-150.0,0.00015558,2]
[396505348,1765014642035,-9331.97398525,0.00015564,2]
[396505349,1765014642046,-9178.78777829,0.00015564,2]
[396505350,1765014642055,-340.0,0.00015569,2]
[396505351,1765014642064,-150.0,0.00015571,2]
[396505352,1765014642073,-340.0,0.00015571,2]
[396505353,1765014642083,-151.0,0.0001558,2]
[396505354,1765014642092,-1214.9,0.00015582,2]
[396505355,1765014642101,-3798.63,0.00015583,2]
[396505356,1765014642110,-38352.72,0.00015583,2]
[396505357,1765014642120,-999.99,0.00015583,2]
[396505358,1765014642129,-1926.14,0.00015583,2]
[396505359,1765014642138,-60642.0,0.00015583,2]
[396505360,1765014642147,-9999.99,0.00015583,2]
[396505361,1765014642156,-758.21,0.00015583,2]
[396505362,1765014642165,-150.99,0.00015583,2]
[396505363,1765014642175,-22705.09,0.00015583,2]
[396505364,1765014642184,-299.99,0.00015583,2]
[396505365,1765014642193,-270.23,0.00015583,2]
[396505366,1765014642202,-150.99,0.00015583,2]
[396505367,1765014642211,-9999.99,0.00015583,2]
[396505368,1765014642222,-500.0,0.00015583,2]
[396505369,1765014642233,-200.0,0.00015583,2]
[396505370,1765014642244,-200.0,0.00015583,2]
[396505371,1765014642255,-1000.0,0.00015583,2]
[396505372,1765014642264,-150.0,0.00015587,2]
[396505373,1765014642274,-150.0,0.0001559,2]
[396505374,1765014642283,-150.0,0.00015597,2]
[396505375,1765014642293,-566.0,0.00015601,2]
[396505376,1765014642302,-150.0,0.00015606,2]
[396505377,1765014642311,-150.0,0.00015611,2]
[396505378,1765014642319,-340.0,0.00015627,2]
[396505379,1765014642328,-150.0,0.00015627,2]
[396505380,1765014642337,-150.0,0.00015627,2]
[396505381,1765014642346,-150.0,0.00015627,2]
[396505382,1765014642354,-908.0,0.00015629,2]
[396505383,1765014642363,-157.0,0.00015629,2]
[396505384,1765014642372,-150.0,0.00015635,2]
[396505385,1765014642381,-150.0,0.00015637,2]
[396505386,1765014642390,-150.0,0.00015642,2]
[396505387,1765014642400,-150.0,0.00015665,2]
[396505388,1765014642409,-150.0,0.00015665,2]
[396505389,1765014642420,-566.0,0.00015667,2]
[396505390,1765014642430,-795.0,0.00015672,2]
[396505391,1765014642439,-150.0,0.00015672,2]
[396505392,1765014642450,-1128.0,0.00015672,2]
[396505393,1765014642460,-3206.0,0.00015672,2]
[396505394,1765014642469,-500.0,0.00015672,2]
[396505395,1765014642478,-150.0,0.00015672,2]
[396505396,1765014642487,-417.0,0.00015672,2]
[396505397,1765014642497,-150.0,0.00015672,2]
[396505398,1765014642506,-152.59077503,0.00015672,2]
[396505399,1765014642515,-932.0,0.00015672,2]
[396505400,1765014642523,-150.0,0.00015674,2]
[396505401,1765014642532,-566.0,0.00015684,2]
[396505402,1765014642541,-150.0,0.00015687,2]
[396505403,1765014642550,-1983.57134746,0.00015692,2]
[396505404,1765014642559,-150.0,0.00015692,2]
[396505405,1765014642569,-566.0,0.00015701,2]
[396505406,1765014642578,-150.0,0.00015703,2]
[396505407,1765014642587,-340.0,0.00015708,2]
[396505408,1765014642596,-150.0,0.00015712,2]
[396505409,1765014642605,-150.0,0.00015712,2]
[396505410,1765014642614,-150.0,0.00015712,2]
[396505411,1765014642625,-150.0,0.00015712,2]
[396505412,1765014642635,-566.0,0.00015726,2]
[396505413,1765014642644,-150.0,0.00015737,2]
[396505414,1765014642653,-150.0,0.00015741,2]
[396505415,1765014642662,-566.0,0.00015742,2]
[396505416,1765014642671,-150.0,0.00015751,2]
[396505417,1765014642680,-150.0,0.00015773,2]
[396505418,1765014642688,-150.0,0.00015778,2]
[396505419,1765014642700,-384.69732764,0.00015782,2]
[396505420,1765014642710,-150.0,0.00015783,2]
[396505421,1765014642719,-9331.97398525,0.00015787,2]
[396505422,1765014642729,-150.0,0.00015787,2]
[396505423,1765014642738,-150.0,0.0001579,2]
[396505424,1765014642747,-150.0,0.00015797,2]
[396505425,1765014642756,-795.0,0.00015809,2]
[396505426,1765014642765,-209.2197886,0.00015809,2]
[396505427,1765014642774,-1128.0,0.00015809,2]
[396505428,1765014642783,-3206.0,0.00015809,2]